bitfinex/quotes_SOLUSD_20250705
["timestamp","ask_amount","ask_price","bid_price","bid_amount"]
[1751678748441,4.0242681,148.18,148.15,23.62448783]
[1751678748745,5.02748816,148.17,148.15,23.62448783]
[1751678748924,4.0242681,148.18,148.15,23.62448783]
[1751678749121,3.8242681,148.16,148.12,42.87727755]
[1751678749323,8.85071066,148.15,148.13,6.75082697]
[1751678749530,3.8242681,148.14,148.1,42.88047395]
[1751678750119,3.8242681,148.13,148.12,26.0]
[1751678750319,8.49122941,148.18,148.12,26.0]
[1751678750520,3.8242681,148.14,148.13,6.75082697]
[1751678752259,1.7426,148.18,148.13,6.75082697]
[1751678752452,3.8242681,148.15,148.13,6.75082697]
[1751678754560,3.8242681,148.16,148.13,6.75082697]
[1751678754728,5.02362251,148.15,148.13,6.75082697]
[1751678755026,3.8242681,148.16,148.13,6.75082697]
[1751678755226,5.02361822,148.15,148.13,6.75082697]
[1751678755456,3.8242681,148.16,148.13,6.75082697]
[1751678755656,5.02359746,148.15,148.13,6.75082697]
[1751678755832,3.8242681,148.16,148.13,6.75082697]
[1751678756034,5.02359746,148.15,148.13,6.75082697]
[1751678756361,3.8242681,148.16,148.13,6.75082697]
[1751678756539,5.0236438,148.15,148.13,6.75082697]
[1751678756739,3.8242681,148.16,148.13,6.75082697]
[1751678756941,5.02363808,148.15,148.13,6.75082697]
[1751678757238,3.8242681,148.16,148.13,6.75082697]
[1751678757436,5.02358726,148.15,148.13,6.75082697]
[1751678757745,3.8242681,148.16,148.13,6.75082697]
[1751678757949,5.02358441,148.15,148.13,6.75082697]
[1751678758148,3.8242681,148.17,148.13,6.75082697]
[1751678758354,5.02360934,148.16,148.13,6.75082697]
[1751678758662,3.8242681,148.17,148.13,6.75082697]
[1751678758841,5.02315165,148.16,148.13,6.75082697]
[1751678759046,3.8242681,148.17,148.13,6.75082697]
[1751678759233,5.02316022,148.16,148.13,6.75082697]
[1751678759434,3.8242681,148.16,148.13,6.75082697]
[1751678761142,1.7426,148.18,148.13,10.57509507]
[1751678761463,8.84778459,148.17,148.13,6.75082697]
[1751678761639,5.02351649,148.16,148.13,6.75082697]
[1751678761937,5.02351649,148.15,148.13,6.75082697]
[1751678762140,5.02351649,148.16,148.13,6.75082697]
[1751678762353,5.02351649,148.15,148.13,6.75082697]
[1751678762540,5.02351649,148.16,148.13,6.75082697]
[1751678762747,5.02351649,148.15,148.13,6.75082697]
[1751678763042,5.02351649,148.16,148.13,6.75082697]
[1751678763243,5.02351649,148.15,148.13,6.75082697]
[1751678763459,3.8242681,148.17,148.13,6.75082697]
[1751678763651,5.02441278,148.16,148.13,6.75082697]
[1751678763850,5.02441278,148.15,148.13,6.75082697]
[1751678764054,3.8242681,148.17,148.13,6.75082697]
[1751678764352,5.02560727,148.16,148.13,6.75082697]
[1751678764548,5.02560727,148.15,148.13,6.75082697]
[1751678764850,3.8242681,148.17,148.13,6.75082697]
[1751678765153,5.02629966,148.16,148.13,6.75082697]
[1751678765450,5.02629966,148.15,148.13,6.75082697]
[1751678765650,3.8242681,148.17,148.13,6.75082697]
[1751678765836,5.02679491,148.16,148.13,6.75082697]
[1751678766037,5.02679491,148.15,148.13,6.75082697]
[1751678766234,3.8242681,148.17,148.13,10.57509507]
[1751678766451,5.02735075,148.16,148.13,10.57509507]
[1751678766651,3.8242681,148.17,148.13,10.57509507]
[1751678766854,5.02766212,148.16,148.13,10.57509507]
[1751678767160,4.0242681,148.18,148.13,10.57509507]
[1751678767370,5.02753347,148.17,148.13,10.57509507]
[1751678767559,5.02753347,148.16,148.13,10.57509507]
[1751678767760,4.0242681,148.18,148.13,10.57509507]
[1751678768061,5.02768285,148.17,148.13,10.57509507]
[1751678768256,5.02768285,148.16,148.13,10.57509507]
[1751678768560,4.0242681,148.18,148.13,10.57509507]
[1751678768758,5.02770014,148.17,148.13,10.57509507]
[1751678768951,5.02770014,148.16,148.13,10.57509507]
[1751678769260,4.0242681,148.18,148.13,10.57509507]
[1751678769440,5.02771243,148.17,148.13,10.57509507]
[1751678769640,5.02771243,148.16,148.13,10.57509507]
[1751678769940,4.0242681,148.18,148.13,10.57509507]
[1751678770142,5.02771243,148.17,148.13,10.57509507]
[1751678770341,5.02771243,148.16,148.13,10.57509507]
[1751678770548,4.0242681,148.18,148.13,10.57509507]
[1751678770740,8.8520599,148.17,148.13,10.57509507]
[1751678770950,5.0277918,148.16,148.13,10.57509507]
[1751678771269,4.0242681,148.18,148.13,10.57509507]
[1751678771451,5.02787469,148.17,148.13,10.57509507]
[1751678771763,5.02787469,148.16,148.14,3.8242681]
[1751678772066,0.2,148.18,148.15,3.8242681]
[1751678772239,5.02788641,148.17,148.15,3.8242681]
[1751678772446,5.02788641,148.16,148.15,29.8242681]
[1751678772962,5.02788641,148.16,148.15,10.57418372]
[1751678773769,5.02788641,148.17,148.15,10.57418372]
[1751678773961,0.2,148.18,148.15,10.57418372]
[1751678774161,5.02808148,148.17,148.15,6.74991562]
[1751678774368,0.2,148.18,148.15,6.74991562]
[1751678774544,5.02806389,148.17,148.15,6.74991562]
[1751678774744,0.2,148.18,148.15,6.74991562]
[1751678775045,5.02806389,148.17,148.15,6.74991562]
[1751678775245,0.2,148.18,148.15,6.74991562]
[1751678775470,5.0279468,148.17,148.15,6.74991562]
[1751678775663,0.2,148.18,148.15,6.74991562]
[1751678775862,5.02802068,148.17,148.15,6.74991562]
[1751678776062,0.2,148.18,148.15,6.74991562]
[1751678776266,5.02802068,148.17,148.15,6.74991562]
[1751678776467,4.0242681,148.18,148.15,6.74991562]
[1751678776772,5.02801835,148.17,148.15,6.74991562]
[1751678776963,4.0242681,148.18,148.15,6.74991562]
[1751678777142,5.02801835,148.17,148.15,6.74991562]
[1751678777452,4.0242681,148.18,148.15,6.74991562]
[1751678777799,3.8242681,148.16,148.13,6.75082697]
[1751678777956,5.02802937,148.15,148.13,6.75082697]
[1751678778143,3.8242681,148.16,148.13,6.75082697]
[1751678778348,5.02733813,148.15,148.13,6.75082697]
[1751678778569,5.02704365,148.14,148.13,6.75082697]
[1751678779768,8.85131175,148.14,148.12,6.75128274]
[1751678779979,3.8242681,148.14,148.12,6.75128274]
[1751678781574,3.8242681,148.14,148.11,6.75173857]
[1751678783576,7.78176093,148.17,148.11,6.75173857]
[1751678783780,3.8242681,148.14,148.11,6.75173857]
[1751678784278,5.03065782,148.13,148.11,6.75173857]
[1751678784482,3.8242681,148.14,148.11,6.75173857]
[1751678784663,5.03040658,148.13,148.11,6.75173857]
[1751678784868,3.8242681,148.14,148.11,6.75173857]
[1751678785184,5.03040658,148.13,148.11,6.75173857]
[1751678785357,3.8242681,148.14,148.11,6.75173857]
[1751678785553,5.03057543,148.13,148.11,6.75173857]
[1751678785755,3.8242681,148.14,148.11,6.75173857]
[1751678785970,5.03057543,148.13,148.11,6.75173857]
[1751678786278,3.8242681,148.14,148.11,6.75173857]
[1751678786481,5.03083508,148.13,148.11,6.75173857]
[1751678786654,3.8242681,148.14,148.11,6.75173857]
[1751678786855,5.03083508,148.13,148.11,6.75173857]
[1751678787070,3.8242681,148.14,148.11,6.75173857]
[1751678792286,5.03211094,148.13,148.11,6.75173857]
[1751678792587,3.8242681,148.14,148.11,6.75173857]
[1751678793293,5.03203559,148.13,148.11,6.75173857]
[1751678793462,3.8242681,148.14,148.11,6.75173857]
[1751678793761,5.03197603,148.13,148.11,6.75173857]
[1751678793960,3.8242681,148.14,148.11,6.75173857]
[1751678794259,5.03197603,148.13,148.11,6.75173857]
[1751678794460,3.8242681,148.14,148.11,6.75173857]
[1751678798896,3.8242681,148.15,148.11,10.57600667]
[1751678799204,5.03128091,148.14,148.11,10.57600667]
[1751678799368,3.8242681,148.15,148.11,10.57600667]
[1751678799569,5.03181004,148.14,148.11,10.57600667]
[1751678799776,3.8242681,148.15,148.11,6.75173857]
[1751678799977,5.03208657,148.14,148.11,6.75173857]
[1751678800178,3.8242681,148.15,148.11,6.75173857]
[1751678800379,5.03194539,148.14,148.11,6.75173857]
[1751678800681,3.8242681,148.15,148.11,6.75173857]
[1751678800991,5.03196841,148.14,148.11,6.75173857]
[1751678801189,3.8242681,148.15,148.11,6.75173857]
[1751678801378,5.03182825,148.14,148.11,6.75173857]
[1751678801580,3.8242681,148.15,148.11,6.75173857]
[1751678801780,5.0318564,148.14,148.11,6.75173857]
[1751678801985,3.8242681,148.15,148.11,6.75173857]
[1751678802185,5.03212657,148.14,148.11,6.75173857]
[1751678802388,3.8242681,148.15,148.11,6.75173857]
[1751678802587,5.03201912,148.14,148.11,6.75173857]
[1751678802788,3.8242681,148.15,148.11,6.75173857]
[1751678803077,5.03201927,148.14,148.11,10.57600667]
[1751678803398,3.8242681,148.15,148.11,10.57600667]
[1751678803590,5.03192478,148.14,148.11,10.57600667]
[1751678803891,3.8242681,148.15,148.11,10.57600667]
[1751678804076,5.03192637,148.14,148.11,10.57600667]
[1751678804275,3.8242681,148.14,148.11,6.75173857]
[1751678805800,5.03331677,148.13,148.11,6.75173857]
[1751678806104,3.8242681,148.14,148.11,6.75173857]
[1751678806289,5.0333136,148.13,148.11,6.75173857]
[1751678806592,3.8242681,148.14,148.11,6.75173857]
[1751678806784,5.03317748,148.13,148.11,6.75173857]
[1751678806977,3.8242681,148.14,148.11,6.75173857]
[1751678807177,5.03317907,148.13,148.11,6.75173857]
[1751678807386,3.8242681,148.14,148.11,6.75173857]
[1751678807598,5.03305912,148.13,148.11,6.75173857]
[1751678807783,3.8242681,148.14,148.11,6.75173857]
[1751678807983,5.03305594,148.13,148.11,6.75173857]
[1751678808186,3.8242681,148.14,148.11,6.75173857]
[1751678808374,5.03305897,148.13,148.11,6.75173857]
[1751678808575,3.8242681,148.14,148.11,6.75173857]
[1751678808789,5.03295527,148.13,148.11,6.75173857]
[1751678809000,3.8242681,148.14,148.11,6.75173857]
[1751678809200,5.03295527,148.13,148.11,6.75173857]
[1751678809404,3.8242681,148.14,148.11,6.75173857]
[1751678809587,5.03287391,148.13,148.11,6.75173857]
[1751678809789,3.8242681,148.14,148.11,6.75173857]
[1751678809987,5.0328755,148.13,148.11,6.75173857]
[1751678810189,3.8242681,148.14,148.11,6.75173857]
[1751678810388,5.0328755,148.13,148.11,6.75173857]
[1751678810698,3.8242681,148.14,148.11,6.75173857]
[1751678810896,5.03281314,148.13,148.11,6.75173857]
[1751678811097,3.8242681,148.15,148.11,6.75173857]
[1751678811299,5.03281605,148.14,148.11,6.75173857]
[1751678811493,5.03281605,148.13,148.11,6.75173857]
[1751678811687,3.8242681,148.15,148.11,6.75173857]
[1751678811885,5.03277264,148.14,148.11,6.75173857]
[1751678812098,5.03277264,148.13,148.11,6.75173857]
[1751678812396,3.8242681,148.15,148.11,6.75173857]
[1751678812594,5.0329853,148.14,148.11,6.75173857]
[1751678812803,5.0329853,148.13,148.11,6.75173857]
[1751678813101,3.8242681,148.15,148.11,6.75173857]
[1751678813408,5.03298371,148.14,148.11,6.75173857]
[1751678813599,5.03298371,148.13,148.11,6.75173857]
[1751678813913,3.8242681,148.15,148.11,6.75173857]
[1751678814207,5.0332384,148.14,148.11,6.75173857]
[1751678814389,5.0332384,148.13,148.11,6.75173857]
[1751678814591,3.8242681,148.15,148.11,6.75173857]
[1751678814789,5.03353567,148.14,148.11,6.75173857]
[1751678814997,5.03353567,148.13,148.11,6.75173857]
[1751678815326,3.8242681,148.15,148.11,6.75173857]
[1751678815501,5.033876,148.14,148.11,6.75173857]
[1751678815697,3.8242681,148.12,148.07,6.92]
[1751678815897,5.033876,148.11,148.08,6.75310642]
[1751678816092,3.8242681,148.12,148.08,6.75310642]
[1751678816302,5.03574272,148.11,148.08,10.57737452]
[1751678816500,3.8242681,148.12,148.08,10.57737452]
[1751678816703,5.03590885,148.11,148.08,10.57737452]
[1751678817008,3.8242681,148.12,148.08,10.57737452]
[1751678817202,5.03592149,148.11,148.08,10.57737452]
[1751678817510,3.8242681,148.12,148.08,10.57737452]
[1751678817721,5.03593487,148.11,148.08,6.75310642]
[1751678817924,3.8242681,148.12,148.08,6.75310642]
[1751678818096,5.03593487,148.11,148.08,10.57737452]
[1751678818392,3.8242681,148.12,148.08,10.57737452]
[1751678818595,5.03614244,148.11,148.08,10.57737452]
[1751678818795,3.8242681,148.12,148.08,10.57737452]
[1751678818988,5.03614244,148.11,148.08,10.57737452]
[1751678819192,3.8242681,148.12,148.08,10.57737452]
[1751678819392,5.03614244,148.11,148.08,10.57737452]
[1751678819691,3.8242681,148.12,148.08,10.57737452]
[1751678819894,5.03673591,148.11,148.08,10.57737452]
[1751678820107,3.8242681,148.12,148.08,10.57737452]
[1751678820288,5.03673448,148.11,148.08,10.57737452]
[1751678820487,3.8242681,148.12,148.08,10.57737452]
[1751678820688,5.03512588,148.11,148.08,10.57737452]
[1751678820888,3.8242681,148.12,148.08,10.57737452]
[1751678821100,5.03509488,148.11,148.08,10.57737452]
[1751678821303,3.8242681,148.12,148.08,6.75310642]
[1751678821611,5.03597864,148.11,148.08,6.75310642]
[1751678821931,3.8242681,148.12,148.08,6.75310642]
[1751678822090,5.03598026,148.11,148.08,6.75310642]
[1751678822291,3.8242681,148.12,148.08,6.75310642]
[1751678822492,5.03693052,148.11,148.08,6.75310642]
[1751678822838,3.8242681,148.09,148.07,32.75343689]
[1751678823013,5.03670817,148.08,148.07,32.75343689]
[1751678823311,3.8242681,148.09,148.07,6.75343689]
[1751678823890,5.03377423,148.08,148.07,6.75343689]
[1751678825217,3.8242681,148.09,148.07,6.75343689]
[1751678829507,8.8476303,148.09,148.07,6.75343689]
[1751678829817,3.8242681,148.09,148.07,6.75343689]
[1751678830409,8.8476303,148.09,148.07,6.75343689]
[1751678830732,3.8242681,148.09,148.07,6.75343689]
[1751678831329,8.84618477,148.09,148.07,6.75343689]
[1751678831518,3.8242681,148.08,148.06,0.1]
[1751678831832,3.8242681,148.07,148.06,0.1]
[1751678832918,3.8242681,148.08,148.06,0.1]
[1751678833232,8.84618477,148.08,148.06,0.1]
[1751678833408,3.8242681,148.08,148.06,0.1]
[1751678833917,8.84618477,148.08,148.06,0.1]
[1751678834225,3.8242681,148.08,148.06,0.1]
[1751678834422,3.8242681,148.08,148.06,6.85384306]
[1751678835120,3.8242681,148.09,148.06,6.85384306]
[1751678835300,8.84618477,148.09,148.06,6.85384306]
[1751678835496,3.8242681,148.09,148.06,6.85384306]
[1751678835724,8.84618477,148.09,148.06,6.85384306]
[1751678835923,3.8242681,148.09,148.06,6.85384306]
[1751678836237,8.84618477,148.09,148.06,6.85384306]
[1751678836439,3.8242681,148.09,148.06,6.85384306]
[1751678836639,8.84618477,148.09,148.06,6.85384306]
[1751678836798,3.8242681,148.09,148.06,6.85384306]
[1751678836998,8.84618477,148.09,148.06,6.85384306]
[1751678837221,3.8242681,148.09,148.06,6.85384306]
[1751678837422,8.84618477,148.09,148.06,6.85384306]
[1751678837623,3.8242681,148.09,148.06,6.85384306]
[1751678837804,8.84618477,148.09,148.06,6.85384306]
[1751678838000,3.8242681,148.09,148.06,6.85384306]
[1751678838201,3.8242681,148.08,148.06,6.85384306]
[1751678843232,8.84618477,148.09,148.06,6.85384306]
[1751678843422,3.8242681,148.09,148.06,6.85384306]
[1751678843626,8.84618477,148.09,148.06,6.85384306]
[1751678843826,3.8242681,148.09,148.06,6.85384306]
[1751678844021,8.84618477,148.09,148.06,6.85384306]
[1751678844331,3.8242681,148.08,148.06,6.85384306]
[1751678845033,5.02191667,148.09,148.06,6.85384306]
[1751678845214,3.8242681,148.09,148.06,6.85384306]
[1751678845416,8.84618477,148.09,148.06,6.85384306]
[1751678845625,3.8242681,148.09,148.06,6.85384306]
[1751678845822,8.84618477,148.09,148.06,6.85384306]
[1751678846030,3.8242681,148.09,148.06,6.85384306]
[1751678846332,8.84618477,148.09,148.06,6.85384306]
[1751678846628,3.8242681,148.09,148.06,6.85384306]
[1751678846832,8.84618477,148.09,148.06,6.85384306]
[1751678847025,3.8242681,148.09,148.06,6.85384306]
[1751678847224,8.84618477,148.09,148.06,6.85384306]
[1751678847424,3.8242681,148.09,148.06,6.85384306]
[1751678847620,8.84618477,148.09,148.06,6.85384306]
[1751678847829,3.8242681,148.09,148.06,6.85384306]
[1751678848126,8.84618477,148.09,148.06,6.85384306]
[1751678848327,3.8242681,148.09,148.06,6.85384306]
[1751678848533,5.02191667,148.09,148.06,6.85384306]
[1751678848725,3.8242681,148.09,148.06,6.85384306]
[1751678848927,8.84618477,148.09,148.06,6.85384306]
[1751678849115,3.8242681,148.09,148.06,6.85384306]
[1751678849314,8.84618477,148.09,148.06,6.85384306]
[1751678849514,3.8242681,148.09,148.06,6.85384306]
[1751678849728,8.84618477,148.09,148.06,6.85384306]
[1751678849927,3.8242681,148.09,148.06,6.85384306]
[1751678850129,8.84618477,148.09,148.06,6.85384306]
[1751678850428,3.8242681,148.09,148.06,6.85384306]
[1751678850629,5.02191667,148.09,148.06,23.73888966]
[1751678850828,5.02191667,148.1,148.08,3.8242681]
[1751678851035,3.8242681,148.14,148.09,29.8242681]
[1751678851235,3.8242681,148.14,148.1,3.8242681]
[1751678851236,5.01676965,148.13,148.1,3.8242681]
[1751678851432,5.01676965,148.12,148.09,29.8242681]
[1751678851627,5.01676965,148.13,148.09,29.8242681]
[1751678851834,5.01676965,148.12,148.1,3.8242681]
[1751678852027,5.01676965,148.13,148.11,6.75173857]
[1751678852225,5.01676965,148.12,148.11,6.75173857]
[1751678852451,5.01676965,148.13,148.11,6.75173857]
[1751678852618,5.01676965,148.12,148.11,6.75173857]
[1751678852947,5.01676965,148.13,148.11,6.75173857]
[1751678853137,5.01676965,148.12,148.11,6.75173857]
[1751678853335,5.01676965,148.13,148.11,6.75173857]
[1751678853545,5.01676965,148.12,148.11,6.75173857]
[1751678853743,5.01676965,148.13,148.11,6.75173857]
[1751678853944,5.01676965,148.12,148.11,6.75173857]
[1751678854244,5.01676965,148.13,148.11,6.75173857]
[1751678854422,5.01676965,148.12,148.11,6.75173857]
[1751678854623,5.01676965,148.13,148.11,6.75173857]
[1751678854843,5.01676965,148.12,148.11,6.75173857]
[1751678855046,5.01676965,148.13,148.11,6.75173857]
[1751678855236,5.01676965,148.12,148.11,6.75173857]
[1751678855537,5.01676965,148.13,148.11,6.75173857]
[1751678855737,5.01676965,148.12,148.11,6.75173857]
[1751678855939,5.01676965,148.13,148.11,6.75173857]
[1751678856146,5.01676965,148.12,148.11,6.75173857]
[1751678856340,5.01676965,148.13,148.11,6.75173857]
[1751678856531,5.01676965,148.12,148.11,6.75173857]
[1751678859850,5.02290822,148.12,148.11,6.75173857]
[1751678861037,5.02290822,148.12,148.1,6.75219446]
[1751678861227,5.02290822,148.11,148.1,10.57646256]
[1751678862245,5.02290822,148.13,148.1,10.57646256]
[1751678862545,5.02290822,148.12,148.1,10.57646256]
[1751678862747,5.02290822,148.11,148.1,10.57646256]
[1751678866326,5.02290822,148.14,148.1,27.45694871]
[1751678866642,5.02290822,148.13,148.11,3.8242681]
[1751678866834,3.8242681,148.15,148.12,6.75128274]
[1751678867034,5.02301661,148.14,148.12,6.75128274]
[1751678867245,5.02301661,148.13,148.12,6.75128274]
[1751678872255,5.02301661,148.14,148.12,6.75128274]
[1751678872440,5.02301661,148.13,148.12,6.75128274]
[1751678872642,5.02301661,148.14,148.12,6.75128274]
[1751678872843,5.02301661,148.13,148.12,6.75128274]
[1751678873152,5.02301661,148.14,148.12,6.75128274]
[1751678873345,5.02301661,148.13,148.12,6.75128274]
[1751678873545,5.02301661,148.14,148.12,6.75128274]
[1751678873752,5.02301661,148.13,148.12,6.75128274]
[1751678873933,8.84728471,148.15,148.12,6.75128274]
[1751678874134,5.02301661,148.14,148.12,6.75128274]
[1751678874336,5.02301661,148.13,148.12,6.75128274]
[1751678874534,5.02301661,148.14,148.1,27.45694871]
[1751678874748,5.02301661,148.13,148.1,27.45694871]
[1751678874951,5.02301661,148.14,148.1,27.45694871]
[1751678875135,5.02301661,148.13,148.1,27.45694871]
[1751678875338,5.02301661,148.14,148.1,27.45694871]
[1751678875538,5.02301661,148.13,148.1,27.45694871]
[1751678875859,5.02301661,148.14,148.1,27.45694871]
[1751678876158,5.02301661,148.13,148.1,27.45694871]
[1751678876365,5.02301661,148.14,148.1,27.45694871]
[1751678876670,5.02301661,148.13,148.1,27.45694871]
[1751678876962,5.02301661,148.14,148.1,27.45694871]
[1751678877136,5.02301661,148.13,148.1,27.45694871]
[1751678877335,5.02301661,148.14,148.1,27.45694871]
[1751678877552,5.02301661,148.13,148.1,27.45694871]
[1751678877736,5.02301661,148.14,148.1,27.45694871]
[1751678877937,5.02301661,148.13,148.1,27.45694871]
[1751678878139,5.02301661,148.14,148.1,27.45694871]
[1751678878341,5.02301661,148.13,148.1,27.45694871]
[1751678878557,5.02301661,148.14,148.1,27.45694871]
[1751678878759,5.02301661,148.13,148.1,27.45694871]
[1751678878937,5.02301661,148.14,148.1,27.45694871]
[1751678879236,5.02301661,148.13,148.1,27.45694871]
[1751678879442,5.02301661,148.14,148.1,27.45694871]
[1751678879637,5.02301661,148.13,148.1,27.45694871]
[1751678879862,5.02301661,148.14,148.1,27.45694871]
[1751678880044,5.02301661,148.13,148.1,27.45694871]
[1751678880237,5.02301661,148.14,148.1,27.45694871]
[1751678880437,5.02301661,148.13,148.1,27.45694871]
[1751678880638,5.02301661,148.14,148.1,27.45694871]
[1751678880854,5.02301661,148.13,148.12,6.75128274]
[1751678881061,5.02301661,148.14,148.12,6.75128274]
[1751678881259,5.02301661,148.13,148.12,6.75128274]
[1751678881561,5.02301661,148.14,148.12,6.75128274]
[1751678881864,5.02301661,148.13,148.12,6.75128274]
[1751678882155,5.02301661,148.14,148.12,6.75128274]
[1751678882362,5.02301661,148.13,148.12,6.75128274]
[1751678882547,5.02301661,148.14,148.12,6.75128274]
[1751678882875,5.02301661,148.13,148.12,6.75128274]
[1751678883064,5.02301661,148.14,148.12,6.75128274]
[1751678883264,5.02301661,148.13,148.12,6.75128274]
[1751678883565,5.02301661,148.14,148.12,6.75128274]
[1751678883861,5.02301661,148.13,148.12,6.75128274]
[1751678884065,5.02301661,148.14,148.12,6.75128274]
[1751678884263,5.02301661,148.13,148.12,6.75128274]
[1751678884567,5.02301661,148.14,148.12,6.75128274]
[1751678884866,5.02301661,148.13,148.12,6.75128274]
[1751678885050,5.02301661,148.14,148.12,6.75128274]
[1751678885259,5.02301661,148.13,148.12,6.75128274]
[1751678890674,5.02301661,148.13,148.11,3.8242681]
[1751678890857,5.02301661,148.12,148.11,3.8242681]
[1751678891858,5.02599303,148.12,148.11,10.57600667]
[1751678893379,5.02599303,148.12,148.1,27.45694871]
[1751678893551,3.8242681,148.14,148.1,23.63268061]
[1751678893751,5.02817548,148.13,148.1,23.63268061]
[1751678893952,5.02817548,148.12,148.1,23.63268061]
[1751678894160,3.8242681,148.14,148.1,23.63268061]
[1751678894375,5.0300932,148.13,148.1,23.63268061]
[1751678894561,5.0300932,148.12,148.1,23.63268061]
[1751678894770,3.8242681,148.14,148.1,23.63268061]
[1751678894974,5.03049212,148.13,148.1,23.63268061]
[1751678895178,5.03049212,148.12,148.1,23.63268061]
[1751678895482,5.03049212,148.11,148.1,23.63268061]
[1751678895680,5.03049212,148.11,148.1,3.8242681]
[1751678898280,5.03049212,148.11,148.1,10.57646256]
[1751678900481,5.03178272,148.11,148.1,10.57646256]
[1751678902891,5.03178272,148.11,148.1,3.8242681]
[1751678904381,5.03178272,148.11,148.08,23.63587249]
[1751678904566,5.03178272,148.1,148.08,27.46014059]
[1751678904766,5.03178272,148.09,148.08,27.46014059]
[1751678906268,5.03178272,148.09,148.08,23.63587249]
[1751678906577,5.03178272,148.09,148.08,6.75310642]
[1751678908086,5.03178272,148.09,148.07,6.7535625]
[1751678908286,5.03178272,148.08,148.07,10.5778306]
[1751678908460,5.03178272,148.08,148.07,6.7535625]
[1751678909173,5.03178272,148.08,148.07,10.5778306]
[1751678909485,5.03178272,148.08,148.07,6.7535625]
[1751678911189,5.03178272,148.08,148.06,6.85386969]
[1751678911390,3.8242681,148.09,148.06,6.85386969]
[1751678911594,5.02735291,148.08,148.06,6.85386969]
[1751678911785,3.8242681,148.09,148.06,6.85386969]
[1751678911976,5.02734716,148.08,148.06,6.85386969]
[1751678912286,3.8242681,148.09,148.06,6.85386969]
[1751678912489,5.02621269,148.08,148.06,6.85386969]
[1751678912675,3.8242681,148.09,148.06,6.85386969]
[1751678912877,5.02620555,148.08,148.06,6.85386969]
[1751678913076,3.8242681,148.09,148.06,6.85386969]
[1751678913296,5.02608021,148.08,148.06,6.85386969]
[1751678913593,3.8242681,148.09,148.06,6.85386969]
[1751678913778,5.02489895,148.08,148.06,6.85386969]
[1751678914082,3.8242681,148.09,148.06,6.85386969]
[1751678914279,5.02463966,148.08,148.06,6.85386969]
[1751678914466,3.8242681,148.09,148.06,6.85386969]
[1751678914667,5.02377114,148.08,148.06,6.85386969]
[1751678914867,3.8242681,148.09,148.06,6.85386969]
[1751678915070,5.02377114,148.08,148.06,6.85386969]
[1751678915272,5.02344031,148.07,148.06,0.1]
[1751678918400,5.02344031,148.08,148.06,0.1]
[1751678918697,5.02344031,148.07,148.06,0.1]
[1751678918875,5.02344031,148.08,148.06,0.1]
[1751678919076,5.02344031,148.07,148.06,0.1]
[1751678919290,5.02344031,148.08,148.06,0.1]
[1751678919490,5.02344031,148.07,148.06,0.1]
[1751678919697,5.02344031,148.08,148.06,0.1]
[1751678919896,5.02344031,148.07,148.06,0.1]
[1751678920098,8.84770841,148.08,148.06,0.1]
[1751678920284,3.8242681,148.08,148.06,0.1]
[1751678923892,8.83883455,148.08,148.06,0.1]
[1751678924073,3.8242681,148.08,148.06,0.1]
[1751678924489,8.83883455,148.08,148.06,0.1]
[1751678924690,5.01456645,148.07,148.06,0.1]
[1751678925403,3.8242681,148.08,148.06,0.1]
[1751678927583,8.83682263,148.08,148.06,0.1]
[1751678927775,3.8242681,148.08,148.06,0.1]
[1751678927975,8.83682263,148.08,148.06,0.1]
[1751678928183,3.8242681,148.08,148.06,0.1]
[1751678928377,8.83682263,148.08,148.06,0.1]
[1751678928596,3.8242681,148.08,148.06,0.1]
[1751678928801,8.83682263,148.08,148.06,0.1]
[1751678929097,3.8242681,148.08,148.06,0.1]
[1751678929300,8.8365622,148.08,148.06,0.1]
[1751678929499,3.8242681,148.08,148.06,0.1]
[1751678929702,8.8365622,148.08,148.06,0.1]
[1751678929901,3.8242681,148.08,148.06,0.1]
[1751678930090,5.0122941,148.07,148.06,0.1]
[1751678934813,5.0122941,148.07,148.06,6.85401864]
[1751678939519,5.0122941,148.08,148.06,6.85401864]
[1751678939725,3.8242681,148.09,148.06,6.85401864]
[1751678939927,5.01344256,148.08,148.06,6.85401864]
[1751678940111,3.8242681,148.09,148.06,6.85401864]
[1751678940312,5.01343828,148.08,148.06,6.85401864]
[1751678940511,3.8242681,148.09,148.06,6.85401864]
[1751678940709,5.01396744,148.08,148.06,6.85401864]
[1751678940912,3.8242681,148.09,148.06,6.85401864]
[1751678941116,5.013966,148.08,148.06,6.85401864]
[1751678941315,5.01456125,148.07,148.06,6.85401864]
[1751678941524,5.01456125,148.08,148.06,6.85401864]
[1751678941724,5.01456125,148.07,148.06,6.85401864]
[1751678941932,5.01456125,148.08,148.06,6.85401864]
[1751678942109,5.01456125,148.07,148.06,6.85401864]
[1751678942315,5.01456125,148.08,148.06,6.85401864]
[1751678942524,5.01456125,148.07,148.06,6.85401864]
[1751678942704,5.01456125,148.08,148.06,6.85401864]
[1751678942927,5.01456125,148.07,148.06,6.85401864]
[1751678943204,5.01456125,148.08,148.06,6.85401864]
[1751678943509,5.01456125,148.07,148.06,6.85401864]